Cogmind - Beta 10.2 @@@ ROGUE MODE // 2021.12.02 @ 08:09:46 Player: TheSlyFawkes Result: Self-destructed Performance ------------- Evolutions (2) 1000 Regions Visited (5) 1000 Robots Destroyed (32) 160 Value Destroyed (459) 459 Prototype IDs (2) 40 Alien Tech Used (0) 0 Bonus (21) 21 TOTAL SCORE: 2680 Bonus ------- Follower Combat Kills 21 Cogmind --------- Core Integrity 425/550 Matter 256/300 Energy 100/100 System Corruption 0% Temperature Cool (0) Movement Flying (40) Location -8/Materials Parts ------- > --- POWER (2) -------- (None) > --- PROPULSION (3) --- Flight Unit > --- UTILITY (4) ------ Structural Scanner Advanced Visual Processing Unit Signal Interpreter ECM Suite > --- WEAPON (2) ------- Light Assault Rifle > --- INVENTORY (4) ---- Light Ion Engine Flight Unit Peak State ------------ > --- POWER ------------ Light Ion Engine Light Ion Engine > --- PROPULSION ------- Improved Hover Unit Improved Hover Unit Improved Hover Unit > --- UTILITY ---------- Signal Interpreter ECM Suite > --- WEAPON ----------- Autogun Autogun > --- INVENTORY -------- Improved Hover Unit Flight Unit Flight Unit Flight Unit [Rating: 14] Favorites ----------- Power Light Ion Engine Engine Light Ion Engine Propulsion Improved Hover Unit Leg Aluminum Leg Wheel Wheel Hover Unit Improved Hover Unit Flight Unit Flight Unit Utility Signal Interpreter Device ECM Suite Storage Small Storage Unit Processor Signal Interpreter Weapon Light Assault Rifle Energy Gun Small Laser Ballistic Gun Light Assault Rifle Launcher Grenade Launcher Special Melee Weapon Datajack Build | -11 -10 -10 -9 -9 -8 ------- Run | Scr Mat Min Mat Min Mat Slots Evolved 4 | . . . 2 . 2 Power 1 | . . . 1 . . Propulsion 1 | . . . 1 . . Utility 2 | . . . . . 2 Weapon . | . . . . . . Parts Attached 47 | 6 15 5 11 6 4 Power 7 | 1 1 1 2 2 . Engine 7 | 1 1 1 2 2 . Core . | . . . . . . Reactor . | . . . . . . Propulsion 22 | 2 7 2 7 3 1 Treads . | . . . . . . Leg 2 | . 2 . . . . Wheel 2 | 2 . . . . . Hover 5 | . 2 . 3 . . Flight 13 | . 3 2 4 3 1 Utility 5 | 1 2 . . . 2 Device 2 | . 1 . . . 1 Storage 1 | 1 . . . . . Processor 2 | . 1 . . . 1 Hackware . | . . . . . . Protection . | . . . . . . Artifact . | . . . . . . Weapon 13 | 2 5 2 2 1 1 Energy Gun 4 | 2 2 . . . . Energy Cannon . | . . . . . . Ballistic Gun 7 | . 2 1 2 1 1 Ballistic Cannon . | . . . . . . Launcher 1 | . 1 . . . . Special Weapon . | . . . . . . Impact Weapon . | . . . . . . Slashing Weapon . | . . . . . . Piercing Weapon . | . . . . . . Special Melee Weapon 1 | . . 1 . . . Unidentified Prototypes . | . . . . . . Parts Lost 17 | . 6 1 2 1 7 Power 5 | . 1 . 2 . 2 Propulsion 7 | . 2 1 . 1 3 Utility . | . . . . . . Weapon 5 | . 3 . . . 2 Highest Loss Streak 7 | . 4 1 2 1 7 Average Slot Usage (%) 89 | . 90 100 97 79 82 Engine 11 | . 12 14 19 3 13 Leg 4 | . 8 . . . . Wheel 1 | . 3 . . . . Hover 14 | . 10 5 14 29 . Flight 8 | . 3 23 18 3 21 Device 9 | . 7 14 11 11 16 Storage 3 | . 6 . . . . Processor 11 | . 10 14 11 11 16 Energy Gun 7 | . 13 4 . . . Ballistic Gun 14 | . 11 14 14 22 16 Special Melee Weapon 1 | . . 10 7 . . Naked Turns . | . . . . . . Heaviest Build 13 | 12 13 6 13 11 12 Greatest Support 26 | 26 26 8 24 24 12 Greatest Overweight (x) 3 | . 3 . . 3 . Average Overweight (x) . | . . . . 1 . Largest Inventory Capacity 6 | 6 6 4 4 4 4 Average Capacity 4 | 4 4 4 4 4 4 Most Carried 6 | 4 6 4 4 4 4 Average Carried 3 | 2 3 2 2 3 2 Final Capacity 6 | 6 4 4 4 4 4 Final Carried 4 | 2 3 2 4 4 2 Class Distribution -------------------- 67% | Mutant 32% | Scavenger-Mutant Dominant Class ---------------- Mutant | -10/Materials Scavenger-Mutant | -10/Mines Scavenger-Mutant | -9/Materials Mutant | -9/Mines Scavenger-Mutant | -8/Materials Resources | -11 -10 -10 -9 -9 -8 ----------- Run | Scr Mat Min Mat Min Mat Matter Collected 864 | 209 237 61 90 228 39 Remotely . | . . . . . . Salvage Created 721 | . 308 29 90 184 110 Parts 64 | . 23 4 13 14 10 Haulers Intercepted . | . . . . . . Recyclers Shooed 2 | . . . 1 1 . Parts Field Recycled . | . . . . . . Retrieved Matter . | . . . . . . Parts Self-Destructed . | . . . . . . Prevented . | . . . . . . Kills | -11 -10 -10 -9 -9 -8 ------- Run | Scr Mat Min Mat Min Mat Combat Hostiles Destroyed 23 | . 11 2 4 . 6 Guns 23 | . 11 2 4 . 6 Classes Destroyed 7 | . 4 . 1 2 . Builder 2 | . . . . 2 . Tunneler 4 | . . . 1 3 . Recycler 1 | . . . . 1 . Operator 1 | . 1 . . . . Watcher 1 | . 1 . . . . Swarmer 18 | . 6 2 4 . 6 Grunt 5 | . 5 . . . . Best Kill Streak 5 | . 5 2 3 3 3 Combat Bots Only 5 | . 5 2 3 . 3 Max Kills in Single Turn 2 | . 2 1 1 1 1 Gunslinging 1 | . 1 . . . . Exploded . | . . . . . . Melee . | . . . . . . Uniques/NPCs Destroyed . | . . . . . . Combat | -11 -10 -10 -9 -9 -8 -------- Run | Scr Mat Min Mat Min Mat Damage Taken 1700 | . 720 148 322 33 477 Core 375 | . 187 13 50 . 125 Absorbed by Shields . | . . . . . . Core Remaining (%) 69 | 100 . 20 . 87 . Volleys Fired 110 | . 55 7 18 13 17 Largest 2 | . 2 2 2 2 2 Hottest 90 | . 90 60 46 46 43 Shots Fired 189 | . 93 14 26 26 30 Gun 187 | . 91 14 26 26 30 Cannon . | . . . . . . Launcher 2 | . 2 . . . . Special . | . . . . . . Kinetic 134 | . 45 7 26 26 30 Thermal 53 | . 46 7 . . . Explosive 2 | . 2 . . . . Electromagnetic . | . . . . . . Robot Hit Streak 9 | . 7 3 5 9 4 Robot Miss Streak 5 | . 5 4 4 3 4 Penetration Max . | . . . . . . Secondary Targets 6 | . 4 1 . . 1 Max Gunslinging Chain 1 | . 1 1 . . 1 Shots Hit Robots 104 | . 50 8 13 17 16 Core Hits 51 | . 28 3 6 6 8 Critical Hits 3 | . 1 1 1 . . Critical Kills 1 | . 1 . . . . Critical Parts Destroyed 2 | . . 1 1 . . Melee Attacks 1 | . . 1 . . . Impact . | . . . . . . Slashing . | . . . . . . Piercing . | . . . . . . Sneak Attacks . | . . . . . . Combat Hostiles . | . . . . . . Follow-up Attacks . | . . . . . . Damage Inflicted 1271 | . 575 72 127 289 208 Guns 1219 | . 523 72 127 289 208 Cannons . | . . . . . . Explosions 52 | . 52 . . . . Melee . | . . . . . . Ramming . | . . . . . . Kinetic 860 | . 207 29 127 289 208 Thermal 359 | . 316 43 . . . Explosive 52 | . 52 . . . . Electromagnetic . | . . . . . . Impact . | . . . . . . Slashing . | . . . . . . Piercing . | . . . . . . Highest Corruption . | . . . . . . Average Corruption . | . . . . . . Corruption Purged . | . . . . . . Overload Shots . | . . . . . . Overflow Damage . | . . . . . . Projectiles . | . . . . . . Explosions . | . . . . . . Melee . | . . . . . . Knockbacks . | . . . . . . Impact . | . . . . . . Kinetic . | . . . . . . Secondary . | . . . . . . Self-Inflicted Damage . | . . . . . . Shots . | . . . . . . Rammed . | . . . . . . Targets Rammed . | . . . . . . Kicked . | . . . . . . Crushed . | . . . . . . Highest Temperature 242 | . 242 74 38 . 12 Average Temperature 51 | . 67 34 12 . 6 Received Heat Transfer 342 | . 288 . 54 . . Effects 1 | . 1 . . . . Energy Bleed 1 | . 1 . . . . Siege Activations . | . . . . . . Robots Corrupted . | . . . . . . Combat Hostiles . | . . . . . . Parts Fried . | . . . . . . Impact Corruptions . | . . . . . . Robots Melted . | . . . . . . Combat Hostiles . | . . . . . . Parts Melted . | . . . . . . Heat Transferred 848 | . 748 100 . . . Parts Sabotaged . | . . . . . . Parts Stolen . | . . . . . . Parts Stripped . | . . . . . . Power Chain Reactions . | . . . . . . Missiles Intercepted . | . . . . . . Alert | -11 -10 -10 -9 -9 -8 ------- Run | Scr Mat Min Mat Min Mat Peak Influence 290 | . 290 101 232 168 245 Initial 90 | . . 56 37 90 65 Average 123 | . 135 97 153 108 153 Maximum Alert Level 1 | . 1 . 1 . 1 Low Security (%) 84 | 100 76 100 71 100 70 Level 1 15 | . 23 . 28 . 29 Level 2 . | . . . . . . Level 3 . | . . . . . . Level 4 . | . . . . . . Level 5 . | . . . . . . High Security . | . . . . . . Max Security . | . . . . . . Squads Dispatched 3 | . 3 . . . . Investigation . | . . . . . . Extermination . | . . . . . . Reinforcement 3 | . 3 . . . . Assault . | . . . . . . Garrison . | . . . . . . Intercept . | . . . . . . Construction Impeded . | . . . . . . Haulers Reinforced . | . . . . . . Stealth | -11 -10 -10 -9 -9 -8 --------- Run | Scr Mat Min Mat Min Mat Distress Signals 6 | . 2 1 2 . 1 Communications Jammed . | . . . . . . Distress Signals . | . . . . . . Times Spotted 91 | . 27 27 16 7 14 Peak Tracking Total 20 | . 4 20 10 4 10 Tactical Retreats 8 | . 1 3 2 . 2 Traps | -11 -10 -10 -9 -9 -8 ------- Run | Scr Mat Min Mat Min Mat Traps Triggered . | . . . . . . Indirectly . | . . . . . . Trap Hack Attempts . | . . . . . . Triggered . | . . . . . . Disarmed . | . . . . . . Reprogrammed . | . . . . . . Reused 2 | . . 2 . . . Traps Extracted . | . . . . . . Installed 3 | . . 3 . . . Triggered . | . . . . . . Machines | -11 -10 -10 -9 -9 -8 ---------- Run | Scr Mat Min Mat Min Mat Machines Disabled 2 | . 2 . . . . Max in Single Turn 1 | . 1 . . . . Machines Sabotaged . | . . . . . . Garrisons Compromised . | . . . . . . Overloaded Fab Kills . | . . . . . . Fab Network Shutdowns . | . . . . . . Hacking | -11 -10 -10 -9 -9 -8 --------- Run | Scr Mat Min Mat Min Mat Machines Accessed 5 | . 4 . . . 1 Terminals 5 | . 4 . . . 1 Fabricators . | . . . . . . Repair Stations . | . . . . . . Recycling Units . | . . . . . . Scanalyzers . | . . . . . . Garrison Access . | . . . . . . Total Hacks 14 | . 11 . . . 3 Successful 6 | . 4 . . . 2 Failed 8 | . 7 . . . 1 Catastrophic 3 | . 3 . . . . Database Lockouts . | . . . . . . Manual 11 | . 9 . . . 2 Terminals 14 | . 11 . . . 3 Fabricators . | . . . . . . Repair Stations . | . . . . . . Recycling Units . | . . . . . . Scanalyzers . | . . . . . . Garrison Access . | . . . . . . Terminal Hacks 6 | . 4 . . . 2 Prototype ID Bank 1 | . . . . . 1 Terminal Index 1 | . 1 . . . . Alert Level 1 | . . . . . 1 Locate Traps 2 | . 2 . . . . Recall Reinforcements 1 | . 1 . . . . Fabricator Hacks . | . . . . . . Repair Station Hacks . | . . . . . . Recycling Unit Hacks . | . . . . . . Scanalyzer . | . . . . . . Garrison Access Hacks . | . . . . . . Unauthorized Hacks . | . . . . . . Terminals . | . . . . . . Fabricators . | . . . . . . Repair Stations . | . . . . . . Recycling Units . | . . . . . . Scanalyzers . | . . . . . . Garrison Access . | . . . . . . Data Cores Recovered . | . . . . . . Used . | . . . . . . Hacking Detections 5 | . 4 . . . 1 Full Trace Events 1 | . 1 . . . . Feedback Events . | . . . . . . Feedback Blocked . | . . . . . . Robot Schematics Acquired . | . . . . . . Robots Built . | . . . . . . Matter . | . . . . . . Time . | . . . . . . Total Robot Build Rating . | . . . . . . Part Schematics Acquired . | . . . . . . Parts Built . | . . . . . . Matter . | . . . . . . Time . | . . . . . . Total Part Build Rating . | . . . . . . Parts Repaired . | . . . . . . Time . | . . . . . . Parts Recycled . | . . . . . . Recycled Matter . | . . . . . . Retrieved Matter . | . . . . . . Retrieved Components . | . . . . . . Parts Scanalyzed . | . . . . . . Part Schematics Acquired . | . . . . . . Parts Damaged . | . . . . . . Bothacking | -11 -10 -10 -9 -9 -8 ------------ Run | Scr Mat Min Mat Min Mat Used RIF Installer . | . . . . . . Robots Hacked 1 | . . 1 . . . Non-combat . | . . . . . . Combat 1 | . . 1 . . . Robot Hacks Applied 1 | . . 1 . . . parse_system 1 | . . 1 . . . Relay Couplers Released . | . . . . . . Robots Rewired . | . . . . . . Allies Hacked . | . . . . . . Hacks Repelled . | . . . . . . Allies | -11 -10 -10 -9 -9 -8 -------- Run | Scr Mat Min Mat Min Mat Total Allies 4 | . . 1 . 3 . Largest Group 3 | . . 1 . 3 . Highest-Rated Group 40 | . . 31 . 40 . Highest-Rated Ally 31 | . . 31 . 16 . Total Orders . | . . . . . . Ally Attacks 24 | . . 14 . 10 . Total Damage 298 | . . 190 . 108 . Kills 6 | . . 3 . 3 . Allies Corrupted . | . . . . . . Allies Melted . | . . . . . . Intel | -11 -10 -10 -9 -9 -8 ------- Run | Scr Mat Min Mat Min Mat Robot Analysis Total . | . . . . . . Derelict Logs Recovered 2 | . . 1 . 1 . Drone Launches . | . . . . . . Drone Recoveries . | . . . . . . Exploration | -11 -10 -10 -9 -9 -8 ------------- Run | Scr Mat Min Mat Min Mat Turns Passed 1377 | 48 647 141 137 312 92 Spaces Moved 1473 | 51 698 209 176 231 108 Core 190 | 31 6 . . 153 . Treads . | . . . . . . Legs 112 | . 112 . . . . Wheels 74 | 20 54 . . . . Hover 430 | . 368 3 50 9 . Flight 667 | . 158 206 126 69 108 Fastest Speed 34 | 50 37 37 34 34 34 Average Speed 63 | 64 65 37 39 114 34 Slowest Speed 200 | 90 200 60 52 200 37 Overloaded Moves . | . . . . . . Propulsion Burnouts . | . . . . . . Robots Hopped 10 | . . 7 3 . . Cave-ins Triggered . | . . . . . . Exploration Rate (%) 37 | 3 86 39 22 54 19 Regions Visited 5 Branch Regions 2 Pre-discovered Areas . | . . . . . . Known Exits Taken 4 | . 1 1 1 1 . Unknown Exits Taken 1 | 1 . . . . . Scrap Searched 1 | . . 1 . . . Spaces Dug . | . . . . . . Terrain Destroyed . | . . . . . . Melee . | . . . . . . Projectile . | . . . . . . AOE . | . . . . . . Terrain Rammed . | . . . . . . Walls Destroyed . | . . . . . . Machines Disabled . | . . . . . . Actions | -11 -10 -10 -9 -9 -8 --------- Run | Scr Mat Min Mat Min Mat Total 1736 | 65 804 253 218 258 138 Wait 40 | . 10 19 3 . 8 Move 1449 | 50 697 195 169 230 108 Hop 9 | . . 6 3 . . Pick Up 44 | 7 15 8 8 5 1 Fast Attach 13 | 3 4 1 2 2 1 Attach 21 | 3 8 1 2 4 3 Detach . | . . . . . . Swap 13 | . 3 3 7 . . Drop 33 | 2 12 9 6 4 . Fire 110 | . 55 7 18 13 17 Melee 1 | . . 1 . . . Ram . | . . . . . . Kick . | . . . . . . Crush . | . . . . . . Escape Stasis . | . . . . . . Rewire . | . . . . . . Trap 3 | . . 3 . . . Miscellaneous . | . . . . . . Route ------- -11/Scrapyard -10/Materials (discovered 3 exits: *Mat x2 / *Min) -10/Mines -9/Materials -9/Mines -8/Materials (discovered 1 exit: Fac) History --------- Turn | Location | Event 6 | -11/Scrapyard | Discovered new exit (range 16) 49 | -11/Scrapyard | Entered Materials 147 | -10/Materials | Core integrity fell below 50% 179 | -10/Materials | Lost 4 parts (2n2w) 303 | -10/Materials | Build established: Mutant 428 | -10/Materials | Discovered new exit (range 5) 565 | -10/Materials | Discovered new exit (range 16) 650 | -10/Materials | Discovered new exit (range 8) 695 | -10/Materials | Identified exit to Mines 696 | -10/Materials | Entered Mines 722 | -10/Mines | Met a Derelict bent on vengeance 733 | -10/Mines | Found a hidden stash of uninstalled traps 751 | -10/Mines | Assembled infested the area 756 | -10/Mines | Assisted by a Guerilla fighting off Assembled 784 | -10/Mines | Received a Mining Laser from a helpful Derelict 834 | -10/Mines | Discovered new exit (range 9) 837 | -10/Mines | Identified exit to Materials 837 | -10/Mines | Entered Materials 837 | -9/Materials | Evolved 2 slots: Power x1, Propulsion x1 962 | -9/Materials | Discovered new exit (range 16) 974 | -9/Materials | Identified exit to Mines 974 | -9/Materials | Entered Mines 1168 | -9/Mines | Assisted by bots powering up and referring to "LRC-V3" 1272 | -9/Mines | Discovered new exit (range 12) 1273 | -9/Mines | Learned 8 Materials zone layouts 1285 | -9/Mines | Identified exit to Materials 1286 | -9/Mines | Entered Materials 1286 | -8/Materials | Evolved 2 slots: Utility x2 1287 | -8/Materials | Identified exit to Factory 1378 | -8/Materials | Self-destructed Last Messages --------------- K-01 Serf collects debris. U-05 Engineer lays Concrete. W-25 Informer sends out distress signal. S-10 Pest destroyed. Flight Unit destroyed. S-10 Pest destroyed. Flight Unit destroyed. Lgt. Assault Rifle destroyed. Lgt. Ion Engine destroyed. Acquired 20 matter. Acquired 19 matter. Acquired Lgt. Assault Rifle. Flight Unit destroyed. Lgt. Ion Engine destroyed. S-10 Pest destroyed. Switching to secondary target: S-10 Pest. S-10 Pest destroyed. Slug penetrates Door. Slug penetrates Wall. Autogun destroyed. Map ----- +----------------------------------------------------+ | | | | | | | | | | | | | | | | | | | | | | | ?????????????????????????????????????????????????? | | ?????????????????????????????????????????????????? | | ??????????????????###########????????????????????? | | ??????????????????# #????????????????????? | | ??????????????????# #????????????????????? | | ??????????????????# """ #????????????????????? | | ??????????????????# """"" #????????????????????? | | ?????????########## """"" #????????????????????? | | ?????????# # """"" #????????????????????? | | ?????????# # """ #????????????????????? | | ?????????# # #????????????????????? | | ######???# ####+#########?????????????????? | | #???# #?# + #?????????????????? | | #???# ] ### #%[ #?????????????????? | | #???# *=/ = #@ #?????????????????? | | # #???# % ### *hs* #?????????????????? | | # #???# [ #?# %#* #?????????????????? | | # #???#####/####?# Y # * #?????????????????? | | # ####### #### ########?????????????????? | | # #????????????????????????? | | # #????????????????????????? | | # #????????????????????????? | | # ###### ###+#############???????????????? | | # #???########## """ """ """ #???????????????? | | # #??? # """ """ """ #???????????????? | | # # # """ """ """ #???????????????? | | # # # #???????????????? | | # # "T" # #???????????????? | | # # """ # #???????????????? | | # #####+######################???????????????? | | # #????????????????????????????? | | + #????????????????????????????? | | # """ " #????????????????????????????? | | # """ T [#### #????????????????????????????? | | ## """ " #??# #????????????????????????????? | | ## """ #??# ############################## | | ## """ #??# | | ?# #??# | | ?# #??# | +----------------------------------------------------+ Best States ------------- Heat Dissipation 31 Energy Generation 15 Energy Capacity 250 Matter Stores 300 Matter Capacity 300 Sight Range 20 Terrain Scan Density 10 ECM Strength 1 Evasion (%) 63 Item Schematics ----------------- None Robot Schematics ------------------ None Fabricated ------------ Nothing Alien Tech Used ----------------- None Achievements -------------- None Challenges ------------ None Game ------ Seed MasterLargeCoupler Manual? 0 Play Time 00:28:23 Cumulative 23.5 hours Start 2021.12.01 @ 21:09:23 End 2021.12.02 @ 08:09:46 Sessions 4 Manual Loads 0 Difficulty Rogue Special Mode None Game No. 34 Rogue 33 Adventurer 1 Explorer 0 Win Type - Total 0 Types 0/0/0/0/0/0/0/0/0 Lore% 20 Gallery% 20 Achievement% 23 Wizard Run 0 Options --------- ASCII 0 Keyboard 0 Movement Mouse Keybinds 0 Fullscreen 1 Font 18/SmallcapsGlow Map View 76x50 Tactical HUD 0 Map Filters NONE Filters NONE Steam 1 RUN: a708ed31-ac03-4e20-b04a-eedd346bb801